{"text_format":"3","workbook":"xlsx","n_sheets":6,"sheets":["Q1","Q2","Q3 & Q4","Q5","Q6","Q7 & Q8"],"read":"whole","date_system":"1900"}

{"sheet":"Q1","index":0,"n_rows":13,"n_cols":6,"rows_kept":13}
["Within your authority in 2022-2023, how many 16-24 year olds:"]
["1) Presented themselves as homeless, or at risk of homelessness, as a main applicant"]
["This does not include general housing advice. By presenting we mean all who presented themselves as homeless even if they were not subsequently assessed. This might include individuals who presented before 56 days of becoming homeless, or at risk of homelessness, believed they were homeless but did not meet requirement, presented but were not eligible for homelessness assistance."]
[]
[]
[null,"Q1","Q2","Q3","Q4","Total"]
["16 & 17 year olds",5,6,5,2,18]
["Female",4,3,3,0,10]
["Male",1,3,2,2,8]
["18-24 year olds",46,44,38,59,187]
["Female",31,22,21,41,115]
["Male",15,22,17,18,72]
["Grand Total",51,50,43,61,205]

{"sheet":"Q2","index":1,"n_rows":12,"n_cols":6,"rows_kept":12}
["2) Were included as part of any household presenting as homeless or at risk of homelessness, including as main applicant"]
["This would include either or both members of a couple aged 16-24, or any children or other adults aged 16-24 included as part of a family. If it is only possible to provide age data for the main applicant, please leave this question blank. "]
[]
[]
[null,"Q1","Q2","Q3","Q4","Total"]
["16 & 17 year olds",16,22,10,7,{"$f":"SUM(B6:E6)","v":55}]
["Female",11,9,7,3,{"$f":"SUM(B7:E7)","v":30}]
["Male",5,13,3,4,25]
["18-24 year olds",69,74,54,73,270]
["Female",47,40,26,43,156]
["Male",22,34,28,30,114]
["Grand Total",85,96,64,80,325]

{"sheet":"Q3 & Q4","index":2,"n_rows":29,"n_cols":6,"rows_kept":29}
["3) Were assessed for a Prevention and/or Relief duty under part 7 of the Housing Act"]
["While this assessment is a new duty brought in by the HRA, it is a duty under part 7 of the Housing Act as amended by the HRA."]
[]
["4) Received an initial decision of being owed:"]
["a. Prevention duty under HRA"]
["b. Relief duty under HRA "]
[]
[]
["Q3 & Q4"]
[null,"Q1","Q2","Q3","Q4","Total"]
["16 & 17 year olds",16,22,10,7,55]
["Female",11,9,7,3,30]
["Already homeless – Relief Duty owed (include accepted local connection referrals)",3,6,1,1,11]
["Threatened with homelessness – Prevention Duty owed",6,2,5,1,14]
["Threatened with homelessness due to service of valid Section 21 Notice – Prevention Duty owed",2,1,1,1,5]
["Male",5,13,3,4,25]
["Already homeless – Relief Duty owed (include accepted local connection referrals)",2,5,1,1,9]
["Threatened with homelessness – Prevention Duty owed",0,4,1,3,8]
["Threatened with homelessness due to service of valid Section 21 Notice – Prevention Duty owed",3,4,1,0,8]
["18-24 year olds",69,74,54,73,270]
["Female",47,40,26,43,156]
["Already homeless – Relief Duty owed (include accepted local connection referrals)",20,16,18,25,79]
["Threatened with homelessness – Prevention Duty owed",15,14,6,14,49]
["Threatened with homelessness due to service of valid Section 21 Notice – Prevention Duty owed",12,10,2,4,28]
["Male",22,34,28,30,114]
["Already homeless – Relief Duty owed (include accepted local connection referrals)",11,20,21,18,70]
["Threatened with homelessness – Prevention Duty owed",8,10,3,8,29]
["Threatened with homelessness due to service of valid Section 21 Notice – Prevention Duty owed",3,4,4,4,15]
["Grand Total",85,96,64,80,325]

{"sheet":"Q5","index":3,"n_rows":49,"n_cols":6,"rows_kept":49}
["5) Prevention duty ended:"]
["a. With accommodation secured"]
["b. Leading to relief duty"]
["c. Any other reason "]
[]
[null,"Qtr1","Qtr2","Qtr3","Qtr4","Total"]
["16 & 17 year olds",8,11,5,5,{"$f":"SUM(B7:E7)","v":29}]
["Female",4,7,2,4,{"$f":"SUM(B8:E8)","v":17}]
["56 days or more expired and no further action",{"$nulls":4},0]
["Contact lost",null,1,null,null,1]
["Homeless",2,1,null,2,5]
["No longer eligible",{"$nulls":4},0]
["Secured alternative accommodation for 12 or more months",1,2,2,null,5]
["Secured alternative accommodation for 6 months",1,2,null,null,3]
["Secured existing accommodation for 12 or more months",{"$nulls":3},1,1]
["Secured existing accommodation for 6 months",null,1,null,null,1]
["Withdrew application",{"$nulls":3},1,1]
["Male",4,4,3,1,12]
["56 days or more expired and no further action",{"$nulls":4},0]
["Contact lost",1,{"$nulls":3},1]
["Homeless",1,3,2,null,6]
["Refused suitable accommodation",{"$nulls":4},0]
["Secured alternative accommodation for 12 or more months",1,1,null,1,3]
["Secured alternative accommodation for 6 months",1,{"$nulls":3},1]
["Secured existing accommodation for 12 or more months",{"$nulls":4},0]
["Secured existing accommodation for 6 months",null,null,1,null,1]
["Withdrew application",{"$nulls":4},0]
["18-24 year olds",20,36,17,17,90]
["Female",16,24,9,12,61]
["56 days or more expired and no further action",4,1,null,null,5]
["Applicant deceased",null,1,null,null,1]
["Contact lost",1,1,1,null,3]
["Homeless",4,12,5,3,24]
["No longer eligible",{"$nulls":4},0]
["Secured alternative accommodation for 12 or more months",2,3,1,1,7]
["Secured alternative accommodation for 6 months",2,4,1,2,9]
["Secured existing accommodation for 12 or more months",1,null,null,1,2]
["Secured existing accommodation for 6 months",2,2,1,4,9]
["Withdrew application",{"$nulls":3},1,1]
["Male",4,12,8,5,29]
["56 days or more expired and no further action",null,2,null,null,2]
["Contact lost",null,null,2,1,3]
["Homeless",2,5,4,2,13]
["No longer eligible",{"$nulls":4},0]
["Secured alternative accommodation for 12 or more months",1,null,2,null,3]
["Secured alternative accommodation for 6 months",null,4,null,null,4]
["Secured existing accommodation for 12 or more months",{"$nulls":3},1,1]
["Secured existing accommodation for 6 months",1,1,null,1,3]
["Grand Total",28,47,22,22,{"$f":"SUM(B49:E49)","v":119}]

{"sheet":"Q6","index":4,"n_rows":41,"n_cols":6,"rows_kept":41}
["6) Relief ended:"]
["a. With accommodation secured"]
["b. for any other reason (not including those who progress to an assessment under the Housing Act 1996)"]
[]
[]
[null,"Qtr1","Qtr2","Qtr3","Qtr4","Total"]
["16 & 17 year olds",4,8,6,4,22]
["Female",2,3,1,3,9]
["56 days elapsed",1,3,1,1,6]
["Applicant has refused a suitable offer, which was not a final offer",1,{"$nulls":3},1]
["Contact lost",{"$nulls":3},1,1]
["Local connection referral accepted by other LA",{"$nulls":4},0]
["Secured accommodation for 6 months",{"$nulls":4},0]
["Withdrew application",{"$nulls":3},1,1]
["Male",2,5,5,1,13]
["56 days elapsed",2,1,3,1,7]
["Contact lost",{"$nulls":4},0]
["No longer eligible",{"$nulls":4},0]
["Secured accommodation for 12 months",null,2,2,null,4]
["Secured accommodation for 6 months",null,2,null,null,2]
["Withdrew application",{"$nulls":4},0]
["18-24 year olds",44,27,36,33,140]
["Female",22,15,17,19,73]
["56 days elapsed",14,10,10,9,43]
["Contact lost",2,2,null,2,6]
["Intentionally homeless from accommodation provided",null,null,1,null,1]
["Local connection referral accepted by other LA",2,1,null,null,3]
["No longer eligible",{"$nulls":3},1,1]
["Secured accommodation for 12 months",null,2,2,5,9]
["Secured accommodation for 6 months",2,null,3,1,6]
["Withdrew application",2,null,1,1,4]
["Male",22,12,19,14,67]
["56 days elapsed",13,7,8,6,34]
["Contact lost",1,1,1,2,5]
["Intentionally homeless from accommodation provided",null,null,1,null,1]
["Local connection referral accepted by other LA",1,1,null,null,2]
["No longer eligible",{"$nulls":3},1,1]
["Secured accommodation for 12 months",2,null,3,2,7]
["Secured accommodation for 6 months",5,3,5,1,14]
["Withdrew application",null,null,1,2,3]
["Grand Total",48,35,42,37,162]

{"sheet":"Q7 & Q8","index":5,"n_rows":44,"n_cols":6,"rows_kept":44}
["7) Were assessed for a statutory main housing duty under part 7 of the Housing Act"]
["By this we mean following unsuccessful prevention and/or relief outcomes, how many young people underwent a final assessment under part 7 of the Housing Act in order to assess their eligibility for a statutory main housing duty "]
["8) Were accepted as statutorily homeless and owed a statutory main housing duty under part 6 of the Housing Act 1996"]
["After undergoing a final assessment, how many young people were accepted as statutorily homeless and offered a statutory main housing duty."]
[]
[]
["Q7 & Q8"]
[null,"Qtr1","Qtr2","Qtr3","Qtr4","Total"]
["16 & 17 year olds",1,5,3,3,{"$f":"SUM(B9:E9)","v":12}]
["Female",1,4,1,1,{"$f":"SUM(B10:E10)","v":7}]
["Homeless + priority need + intentionally homeless",{"$nulls":4},0]
["Homeless + priority need + unintentional – s193(2) duty",null,4,1,1,6]
["Lost contact prior to assessment",{"$nulls":4},0]
["Not homeless",1,{"$nulls":3},1]
["Male",null,1,2,2,5]
["Homeless + no priority need",{"$nulls":4},0]
["Homeless + priority need + intentionally homeless",{"$nulls":4},0]
["Homeless + priority need + unintentional – refused to cooperate (s193c(4) duty owed)",{"$nulls":4},0]
["Homeless + priority need + unintentional – s193(2) duty",null,1,2,2,5]
["Lost contact prior to assessment",{"$nulls":4},0]
["Not homeless",{"$nulls":4},0]
["18-24 year olds",32,23,33,28,116]
["Female",18,11,19,16,64]
["Homeless + no priority need",2,null,null,1,3]
["Homeless + priority need + intentionally homeless",null,1,1,1,3]
["Homeless + priority need + unintentional – refused to cooperate (s193c(4) duty owed)",{"$nulls":4},0]
["Homeless + priority need + unintentional – s193(2) duty",13,8,14,14,49]
["Lost contact prior to assessment",null,1,2,null,3]
["Not eligible for assistance",{"$nulls":4},0]
["Not homeless",null,null,1,null,1]
["Withdrew prior to assessment",3,1,1,null,5]
["Male",14,12,14,11,51]
["Homeless + no priority need",3,2,1,1,7]
["Homeless + priority need + intentionally homeless",null,null,1,null,1]
["Homeless + priority need + unintentional – duty owed but referred to another Local Authority",{"$nulls":4},0]
["Homeless + priority need + unintentional – refused to cooperate (s193c(4) duty owed)",{"$nulls":4},0]
["Homeless + priority need + unintentional – s193(2) duty",7,7,7,7,28]
["Lost contact prior to assessment",1,2,3,1,7]
["Not eligible for assistance",{"$nulls":4},0]
["Not homeless",2,null,2,2,6]
["Withdrew prior to assessment",1,1,null,null,2]
["Not Known / Other",{"$nulls":3},1,1]
["Homeless + priority need + unintentional – s193(2) duty",{"$nulls":3},1,1]
["Grand Total",33,28,36,31,{"$f":"SUM(B44:E44)","v":128}]